bitfinex/quotes_ETHUSD_20250602
["timestamp","ask_amount","ask_price","bid_price","bid_amount"]
[1748857008950,6.85667237,2481.9,2481.7,4.02938147]
[1748857009133,6.85667237,2481.9,2481.5,4.02967737]
[1748857009333,6.85667237,2481.9,2481.5,8.39967737]
[1748857010021,6.85667237,2481.9,2481.6,4.02965417]
[1748857010218,10.88592145,2481.9,2481.7,1.225]
[1748857010426,7.94526452,2481.9,2481.7,1.225]
[1748857010621,6.85667237,2481.9,2481.7,5.25442381]
[1748857010838,0.40509328,2482.2,2481.7,1.225]
[1748857011042,11.65278669,2482.3,2481.8,4.02925324]
[1748857011223,4.0287256,2482.2,2481.7,6.06624731]
[1748857011418,11.65275432,2482.3,2481.7,2.0368]
[1748857011743,1.22027543,2482.2,2481.8,4.02931401]
[1748857012045,6.85667237,2482.4,2482.0,4.02892975]
[1748857012644,7.24963109,2482.4,2482.0,4.02899476]
[1748857013146,7.24963109,2482.4,2481.8,8.39326596]
[1748857013346,7.24963109,2482.4,2481.8,4.364]
[1748857013643,7.24963109,2482.4,2482.0,4.02899179]
[1748857013838,6.85667237,2482.4,2482.2,4.0286834]
[1748857014214,0.73300456,2482.6,2481.8,4.364]
[1748857014409,0.73300456,2482.6,2482.2,4.02861036]
[1748857014845,0.73300456,2482.6,2482.3,4.0284654]
[1748857015139,0.01,2482.9,2482.6,4.02792596]
[1748857015338,0.01,2482.9,2482.7,4.02785327]
[1748857015637,0.01,2482.9,2482.6,5.23896435]
[1748857015839,0.01,2482.9,2482.7,4.02785346]
[1748857016233,0.01,2482.9,2482.6,5.23895922]
[1748857018439,0.01,2482.9,2482.6,1.211]
[1748857018742,0.01,2482.9,2482.5,4.02810607]
[1748857018923,1.58521778,2482.9,2482.6,1.21]
[1748857019111,1.58521778,2482.9,2482.6,5.23796258]
[1748857019313,0.01,2482.9,2482.6,5.23796258]
[1748857019942,0.01,2482.9,2482.7,4.02775781]
[1748857020559,0.01,2482.9,2482.6,1.21]
[1748857021412,0.7639,2482.6,2482.0,0.8196]
[1748857021611,6.85667237,2482.4,2482.0,2.0296]
[1748857021817,6.85667237,2482.4,2482.1,4.02872077]
[1748857022032,6.85667237,2482.4,2481.7,4.02948171]
[1748857022033,6.85667237,2482.4,2481.7,0.7563]
[1748857022232,6.85667237,2482.2,2481.9,1.21]
[1748857022624,0.58699572,2482.4,2482.1,4.02876926]
[1748857022826,0.58699572,2482.4,2482.0,4.02890161]
[1748857022827,0.58699572,2482.4,2482.0,4.02891456]
[1748857023051,6.85667237,2482.2,2481.7,0.7563]
[1748857023250,6.85667237,2482.2,2481.8,1.21]
[1748857023422,1.0885339,2482.1,2481.8,4.02931796]
[1748857023628,1.0885339,2482.1,2481.8,1.21]
[1748857024027,1.0885339,2482.1,2481.7,4.02940811]
[1748857024250,4.02957628,2481.7,2481.2,4.03030293]
[1748857024560,6.85667237,2481.4,2481.0,4.03056989]
[1748857024760,6.85667237,2481.4,2481.1,4.03032751]
[1748857024919,6.85667237,2481.4,2481.2,4.03030324]
[1748857025121,6.85667237,2481.4,2481.0,4.355]
[1748857025442,0.7758,2481.9,2481.3,4.03001997]
[1748857025625,0.7758,2481.9,2481.3,4.356]
[1748857025957,1.17507163,2481.9,2481.5,4.02971767]
[1748857026117,1.17507163,2481.9,2481.6,1.21]
[1748857026320,0.7758,2481.9,2481.5,4.02971767]
[1748857026519,6.85667237,2482.0,2481.6,1.21]
[1748857026715,6.85667237,2482.0,2481.4,4.02998307]
[1748857026716,6.85667237,2482.0,2481.9,4.02917119]
[1748857027125,6.85667237,2482.0,2481.7,1.21]
[1748857027338,6.85667237,2482.0,2481.8,1.21]
[1748857027562,8.10191962,2482.0,2481.8,1.21]
[1748857028685,8.10191962,2482.0,2481.6,5.23958743]
[1748857029029,8.10191962,2482.0,2481.6,1.21]
[1748857029230,8.10191962,2482.0,2481.6,5.23958146]
[1748857029843,8.10191962,2482.0,2481.6,1.21]
[1748857030040,1.72251687,2481.9,2481.6,5.23964335]
[1748857030787,1.72251687,2481.9,2481.5,4.02980293]
[1748857030788,7.68527237,2481.7,2480.9,9.5096]
[1748857031071,4.354,2481.8,2481.3,1.21]
[1748857031443,4.354,2481.8,2481.4,4.02998307]
[1748857031629,1.82074735,2481.8,2481.4,4.02998307]
[1748857031833,7.25629522,2481.9,2481.6,4.02964707]
[1748857032137,0.73940133,2482.1,2482.0,4.02900886]
[1748857032651,24.0506505,2482.5,2481.7,0.7794]
[1748857032652,7.66237237,2482.5,2482.3,4.02852193]
[1748857033170,6.85667237,2482.5,2482.3,4.02852193]
[1748857033475,6.85667237,2482.5,2482.2,4.02862045]
[1748857033784,6.85667237,2482.5,2482.1,5.23878556]
[1748857034139,6.85667237,2482.5,2482.2,4.0286562]
[1748857034329,0.74436681,2482.3,2481.7,0.7794]
[1748857034534,6.85667237,2482.5,2481.8,1.21]
[1748857034732,6.85667237,2482.5,2482.1,4.02876325]
[1748857035132,6.85667237,2482.5,2482.1,4.02877219]
[1748857035328,6.85667237,2482.5,2481.9,4.02917119]
[1748857035329,4.61543997,2482.4,2481.9,4.02917119]
[1748857035529,6.85667237,2482.2,2482.0,1.21]
[1748857036151,6.85667237,2482.2,2482.0,5.23900167]
[1748857037167,0.58699572,2482.4,2482.0,1.21]
[1748857037334,0.58699572,2482.4,2482.2,4.02862373]
[1748857037768,0.58699572,2482.4,2482.2,4.02860979]
[1748857038984,0.58699572,2482.4,2482.1,4.02875481]
[1748857039344,6.85667237,2482.3,2482.0,1.21]
[1748857039545,7.60103918,2482.3,2482.0,1.21]
[1748857039974,7.60103918,2482.3,2482.0,5.2390066]
[1748857040634,7.60103918,2482.3,2482.0,1.21]
[1748857041137,7.60103918,2482.3,2482.0,5.23899629]
[1748857041744,0.7783,2482.2,2482.0,1.21]
[1748857042084,2.07778806,2482.2,2481.9,4.02910947]
[1748857042375,2.07778806,2482.2,2482.0,1.21]
[1748857042676,1.29948806,2482.2,2482.1,4.02884654]
[1748857042839,7.60103918,2482.3,2482.1,4.02884654]
[1748857043738,24.01685589,2482.7,2482.0,1.21]
[1748857043939,24.01693125,2482.7,2482.2,4.0285902]
[1748857044163,24.01693125,2482.7,2482.0,1.21]
[1748857044375,24.01693125,2482.7,2482.3,4.02849392]
[1748857044622,2.40169313,2482.6,2482.4,4.02826785]
[1748857044764,7.63497237,2482.7,2482.0,5.55]
[1748857044956,6.85667237,2482.4,2482.0,9.57888131]
[1748857045274,6.85667237,2482.4,2482.1,4.02879015]
[1748857045575,6.85667237,2482.4,2482.1,5.22984]
[1748857045779,6.85667237,2482.4,2482.1,1.201]
[1748857045981,1.08849719,2482.3,2482.1,1.201]
[1748857046804,1.08849719,2482.3,2482.1,5.22983371]
[1748857046954,1.08849719,2482.3,2482.2,4.02868423]
[1748857047307,4.80624549,2482.7,2482.4,4.02825535]
[1748857047308,7.63497237,2482.7,2482.4,4.02825535]
[1748857047461,11.97397237,2482.7,2482.3,4.02843207]
[1748857047785,16.00185634,2482.7,2482.3,4.02843207]
[1748857048881,11.97397237,2482.7,2482.4,4.02828887]
[1748857049087,11.97397237,2482.7,2482.4,4.02822561]
[1748857049397,1.19739724,2482.6,2482.4,4.02822561]
[1748857049954,6.85667237,2482.7,2482.5,4.02819738]
[1748857050195,6.85667237,2482.7,2482.6,4.02803512]
[1748857050582,0.01,2482.9,2482.6,4.02803512]
[1748857050762,0.01,2482.9,2482.7,4.02778645]
[1748857051398,0.8979864,2482.9,2482.4,4.331]
[1748857051714,0.8979864,2482.9,2482.7,4.02777777]
[1748857052495,0.8979864,2482.9,2482.2,0.7551]
[1748857052680,6.85667237,2482.6,2482.4,4.02834965]
[1748857053036,7.75465877,2482.9,2482.6,4.0278969]
[1748857053337,7.75465877,2482.9,2482.3,1.201]
[1748857053338,1.20816588,2482.8,2482.3,1.201]
[1748857053509,4.02848908,2482.4,2481.9,4.0291465]
[1748857053812,7.66567237,2482.3,2482.0,4.02893856]
[1748857054017,6.85667237,2482.3,2482.2,4.02868423]
[1748857054216,6.85667237,2482.3,2482.1,4.02874326]
[1748857054601,6.85667237,2482.3,2482.2,4.02868423]
[1748857054804,6.85667237,2482.6,2482.2,4.02860574]
[1748857055001,1.08846214,2482.5,2482.2,4.02860574]
[1748857055409,1.08846214,2482.5,2482.2,5.22960574]
[1748857055940,1.08846214,2482.5,2482.4,4.02835965]
[1748857056212,1.08846214,2482.5,2482.2,5.22960136]
[1748857056577,1.08846214,2482.5,2482.2,1.201]
[1748857056781,6.85667237,2482.6,2482.4,4.02823859]
[1748857057016,6.85667237,2482.6,2482.5,4.02819738]
[1748857057244,1.99696588,2482.8,2482.5,4.02819738]
[1748857057633,1.99696588,2482.8,2482.6,4.02796512]
[1748857057955,0.97516247,2482.7,2482.6,4.02796512]
[1748857058156,1.20816588,2482.8,2482.7,4.02787288]
[1748857058649,1.20816588,2482.8,2482.5,4.02809612]
[1748857059016,1.20816588,2482.8,2482.6,4.02791607]
[1748857059210,6.86667237,2482.9,2482.2,9.54968246]
[1748857059433,6.86667237,2482.9,2482.8,4.02771064]
[1748857059849,0.01,2482.9,2482.8,4.02771064]
[1748857060052,0.01,2482.9,2482.8,4.83581064]
[1748857061226,0.01,2482.9,2482.8,5.22871064]
[1748857066353,0.01,2482.9,2482.8,6.58606827]
[1748857066567,0.01,2482.9,2482.8,7.41566827]
[1748857068056,0.01,2482.9,2482.8,15.45593726]
[1748857068266,0.01,2482.9,2482.8,15.41566827]
[1748857068760,0.01,2482.9,2482.8,15.96566827]
[1748857069116,0.01,2482.9,2482.8,20.71566827]
[1748857072228,0.01,2482.9,2482.8,18.96466827]
[1748857072553,0.01,2482.9,2482.8,24.46966827]
[1748857073283,0.01,2482.9,2482.8,18.96466827]
[1748857073567,0.01,2482.9,2482.8,19.71766827]
[1748857073766,0.01,2482.9,2482.8,15.41566827]
[1748857073969,0.01,2482.9,2482.8,19.71666827]
[1748857074924,0.01,2482.9,2482.8,19.71566827]
[1748857076040,0.01,2482.9,2482.8,19.68866827]
[1748857076930,0.01,2482.9,2482.8,11.68866827]
[1748857077258,0.01,2482.9,2482.8,19.68866827]
[1748857081346,0.01,2482.9,2482.8,14.21466827]
[1748857081551,0.01,2482.9,2482.8,15.39166827]
[1748857081750,0.01,2482.9,2482.8,19.67766827]
[1748857082155,0.01,2482.9,2482.8,19.67866827]
[1748857083366,0.01,2482.9,2482.8,19.67566827]
[1748857083710,0.01,2482.9,2482.8,20.22566827]
[1748857085386,0.01,2482.9,2482.8,19.67566827]
[1748857085799,0.01,2482.9,2482.8,14.21466827]
[1748857086178,0.01,2482.9,2482.8,19.67866827]
[1748857086603,0.01,2482.9,2482.8,19.67766827]
[1748857086801,0.01,2482.9,2482.8,15.39166827]
[1748857086974,0.01,2482.9,2482.8,19.67866827]
[1748857088704,0.01,2482.9,2482.8,14.21466827]
[1748857088926,0.01,2482.9,2482.8,19.68266827]
[1748857091984,0.01,2482.9,2482.8,20.23266827]
[1748857092825,0.01,2482.9,2482.8,19.67566827]
[1748857093030,0.01,2482.9,2482.8,14.21466827]
[1748857093234,0.01,2482.9,2482.8,14.56206827]
[1748857093430,0.01,2482.9,2482.8,18.84806827]
[1748857094296,0.01,2482.9,2482.8,14.56206827]
[1748857094627,0.01,2482.9,2482.8,17.48771064]
[1748857096098,0.01,2482.9,2482.8,18.30601064]
[1748857096508,0.01,2482.9,2482.8,25.71268301]
[1748857096713,0.01,2482.9,2482.8,13.39601064]
[1748857096909,0.01,2482.9,2482.8,18.85701064]
[1748857097127,0.01,2482.9,2482.8,18.30601064]
[1748857097348,0.01,2482.9,2482.8,18.85601064]
[1748857098079,0.01,2482.9,2482.8,25.71268301]
[1748857099501,0.01,2483.9,2483.8,4.02608905]
[1748857099725,0.01,2483.9,2483.8,18.25168905]
[1748857102573,0.01,2483.9,2483.8,12.79468905]
[1748857102779,0.01,2483.9,2483.8,17.47608905]
[1748857105478,0.01,2483.9,2483.8,17.47308905]
[1748857107073,0.01,2483.9,2483.8,17.45308905]
[1748857107644,0.01,2483.9,2483.8,12.02608905]
[1748857107838,0.7719,2483.9,2483.8,13.18508905]
[1748857108363,0.7719,2483.9,2483.8,5.18508905]
[1748857109893,0.01,2483.9,2483.8,7.40261993]
[1748857110077,0.01,2483.9,2483.8,5.22534231]
[1748857110453,0.01,2483.9,2483.8,5.18508905]
[1748857112409,0.01,2483.9,2483.8,13.99358905]
[1748857113766,0.01,2484.9,2483.8,13.99358905]
[1748857113767,0.7781,2484.6,2484.5,4.02495471]
[1748857113969,0.7781,2484.6,2484.5,5.18395471]
[1748857114166,0.7781,2484.6,2484.4,4.02498417]
[1748857114479,0.7781,2484.6,2484.5,5.18395471]
[1748857119820,6.86667237,2484.9,2484.8,4.02446877]
[1748857119821,0.01,2484.9,2484.8,4.02446877]
[1748857123223,0.01,2484.9,2484.8,5.18346877]
[1748857125695,0.01,2484.9,2484.8,5.22370946]
[1748857126029,0.01,2484.9,2484.8,5.18346877]
[1748857126825,0.01,2484.9,2484.3,0.7809]
[1748857127024,0.01,2484.9,2484.8,5.18346877]
[1748857128303,0.01,2484.9,2484.8,9.48470892]
[1748857128501,0.01,2484.9,2484.8,9.44446877]
[1748857129115,0.01,2484.9,2484.8,10.79137634]
[1748857130119,0.008395,2484.9,2484.8,10.79137634]
[1748857130328,0.008395,2484.9,2484.8,5.37137634]
[1748857130531,0.008395,2484.9,2484.8,10.79137634]
[1748857132044,0.008395,2484.9,2484.8,11.57127634]
[1748857132243,0.008395,2484.9,2484.8,19.57127634]
[1748857132749,0.008395,2484.9,2484.8,20.12127634]
[1748857134020,0.394495,2485.9,2485.8,4.02284978]
[1748857134217,0.394495,2485.9,2485.8,5.18084978]
[1748857134703,0.394495,2485.9,2485.0,9.5538961]
[1748857134704,7.25116737,2485.9,2485.0,9.5538961]
[1748857134908,8.37852883,2485.9,2485.6,4.02310137]
[1748857135130,8.37852883,2485.9,2485.7,4.0230006]
[1748857135341,8.37852883,2485.9,2485.7,1.158]
[1748857135847,8.37852883,2485.9,2485.7,5.18090075]
[1748857136046,8.37852883,2485.9,2485.7,5.180918]
[1748857136752,8.37852883,2485.9,2485.7,1.158]
[1748857137549,0.83785288,2485.8,2485.7,1.155]
[1748857137760,0.83785288,2485.8,2485.7,5.17801162]
[1748857137915,0.83785288,2485.8,2485.7,1.155]
[1748857138272,0.83785288,2485.8,2485.7,5.17801162]
[1748857138546,0.394495,2485.9,2485.8,4.02284978]
[1748857139427,7.25116737,2485.9,2485.7,1.155]
[1748857140687,4.79654978,2485.8,2485.7,1.155]
[1748857140980,4.80554978,2485.8,2485.7,1.155]
[1748857141171,2.35119199,2485.8,2485.7,1.155]
[1748857141549,5.59143287,2485.8,2485.4,1.155]
[1748857141748,0.7757,2485.7,2485.4,1.155]
[1748857141948,0.7757,2485.7,2485.5,4.02326244]
[1748857142475,6.85667237,2485.6,2485.5,1.155]
[1748857142678,7.61990961,2485.6,2485.2,4.02371069]
[1748857142861,6.85667237,2485.3,2485.2,1.155]
[1748857144180,0.7757,2485.4,2485.2,1.155]
[1748857144784,7.65987237,2485.3,2485.2,1.155]
[1748857146489,7.65987237,2485.3,2485.1,1.155]
[1748857146982,8.828205,2485.3,2484.9,4.02428984]
[1748857147185,8.828205,2485.3,2485.0,5.17908984]
[1748857147386,8.828205,2485.3,2485.1,4.02394676]
[1748857147595,0.8032,2485.3,2485.1,4.02386903]
[1748857147804,0.8032,2485.3,2485.2,4.02382102]
[1748857148183,0.8032,2485.6,2485.1,4.02398293]
[1748857148505,4.82647043,2485.6,2485.2,1.155]
[1748857148702,4.02380471,2485.3,2485.0,1.155]
[1748857149005,1.89124771,2485.3,2485.0,5.17913176]
[1748857149659,1.89124771,2485.3,2485.0,1.155]
[1748857149865,1.89124771,2485.3,2485.0,5.17905974]
[1748857151713,1.89124771,2485.3,2485.1,4.02390047]
[1748857151921,0.8032,2485.3,2485.2,4.02382102]
[1748857152379,0.8032,2485.3,2485.0,1.155]
[1748857152577,0.8032,2485.3,2485.0,5.17907995]
[1748857152813,0.8032,2485.3,2485.0,1.155]
[1748857153730,0.8032,2485.3,2484.6,4.75]
[1748857153731,4.82686052,2485.3,2484.6,4.75]
[1748857153916,4.82686052,2485.3,2484.0,4.02565993]
[1748857153917,6.85667237,2485.1,2484.8,1.155]
[1748857154320,0.8041,2485.0,2484.1,4.03548428]
[1748857154520,0.8041,2485.0,2484.7,1.155]
[1748857155019,4.82835662,2485.0,2484.7,1.155]
[1748857155220,2.3985029,2485.0,2484.7,1.155]
[1748857155419,6.42265412,2485.0,2484.7,1.155]
[1748857155588,2.3985029,2485.0,2484.7,1.155]
[1748857155925,6.42265173,2485.0,2484.7,1.155]
[1748857156226,2.3985029,2485.0,2484.7,1.155]
[1748857156423,2.3985029,2485.0,2484.7,5.17961991]
[1748857157001,6.42268654,2485.0,2484.7,1.155]
[1748857157224,0.8191,2484.8,2484.0,0.7809]
[1748857157540,7.67577237,2484.5,2484.4,1.155]
[1748857157930,0.8191,2484.5,2484.4,5.18011672]
[1748857158118,0.8096,2484.7,2484.4,1.155]
[1748857158512,0.7657,2484.9,2484.6,4.02471589]
[1748857159045,0.7657,2484.9,2484.6,4.02475015]
[1748857159241,0.7657,2484.9,2484.5,4.02490032]
[1748857159409,12.95399837,2484.9,2484.4,4.025044]
[1748857159616,4.024555,2484.8,2484.3,4.02524793]
[1748857159946,4.024555,2484.8,2484.4,1.155]
[1748857160325,4.024555,2484.8,2484.3,4.02524793]
[1748857160326,8.16396885,2484.9,2484.1,0.01]
[1748857160526,7.66737237,2484.6,2484.3,4.02526636]
[1748857161125,7.66737237,2484.6,2484.4,4.02510588]
[1748857161326,0.8107,2484.6,2484.4,4.02510588]
[1748857161549,0.8037,2484.9,2484.7,4.02451926]
[1748857161752,0.8037,2484.9,2484.8,4.02446877]
[1748857161950,0.7637,2485.3,2484.4,4.259]
[1748857162151,0.7637,2485.3,2484.6,4.81399272]
[1748857162447,0.7637,2485.3,2484.9,4.02422958]
[1748857162745,0.7637,2485.3,2484.9,1.155]
[1748857162919,0.7637,2485.3,2484.9,5.17922781]
[1748857163250,0.7637,2485.3,2484.9,1.155]
[1748857163455,0.7637,2485.3,2485.0,4.02404981]
[1748857163634,0.7637,2485.3,2484.9,1.155]
[1748857163837,0.7637,2485.3,2485.0,4.0240384]
[1748857164647,0.7637,2485.3,2484.9,5.17923091]
[1748857165254,0.7637,2485.3,2485.0,4.0240921]
[1748857166260,0.7637,2485.3,2484.9,5.17923289]
[1748857166556,0.7637,2485.3,2485.0,4.02412493]
[1748857166933,0.7637,2485.3,2485.1,4.02393725]
[1748857167252,0.7637,2485.3,2485.0,4.02406713]
[1748857168362,0.7637,2485.3,2485.1,4.02395534]
[1748857168736,0.7637,2485.3,2485.0,4.02410697]
[1748857169263,0.7637,2485.3,2484.9,5.17926001]
[1748857169758,1.16439541,2485.2,2484.9,1.154]
[1748857170134,1.16439541,2485.2,2484.9,5.17822885]
[1748857170338,1.16439541,2485.2,2484.9,1.154]
[1748857170554,1.16439541,2485.2,2484.9,5.1782554]
[1748857171666,1.16439541,2485.2,2484.9,1.154]
[1748857172040,1.16439541,2485.2,2484.9,5.17828568]
[1748857172479,0.7637,2485.3,2485.1,4.02398293]
[1748857172685,0.7637,2485.3,2485.1,4.02389069]
[1748857172898,0.7637,2485.3,2484.9,1.154]
[1748857173089,0.7637,2485.3,2485.0,4.02406161]
[1748857173244,3.56348314,2485.2,2485.0,4.02406161]
[1748857173889,3.56348314,2485.2,2484.9,1.154]
[1748857174106,3.56348314,2485.0,2484.7,4.02449999]
[1748857174243,0.83508829,2485.1,2484.8,1.154]
[1748857174444,3.56348314,2484.9,2484.8,1.154]
[1748857175750,3.56348314,2484.9,2484.8,5.17846877]
[1748857176389,4.39028314,2484.9,2484.8,1.154]
[1748857176694,4.82931145,2484.9,2484.6,4.02468431]
[1748857177045,4.39028314,2484.9,2484.7,4.02462586]
[1748857177260,3.56348314,2485.1,2484.8,4.02446877]
[1748857177458,4.36658314,2485.1,2485.0,4.02414486]
[1748857177663,3.56348314,2485.1,2485.0,4.02414486]
[1748857178875,4.34148314,2485.1,2484.9,4.02428833]
[1748857179075,4.34148314,2485.1,2484.9,4.02430681]
[1748857179496,4.34148314,2485.1,2484.9,4.02420244]
[1748857179993,4.34148314,2485.1,2485.0,4.02414486]
[1748857180442,4.34148314,2485.1,2484.7,1.154]
[1748857180643,4.34148314,2485.1,2484.7,5.17855355]
[1748857180855,8.3654857,2485.1,2484.6,4.02479272]
[1748857181076,3.56348314,2484.9,2484.7,5.17861944]
[1748857181782,3.56348314,2484.9,2484.7,1.154]
[1748857182601,3.56348314,2484.9,2484.6,4.02471043]
[1748857182602,3.56348314,2484.9,2484.5,5.17890703]
[1748857182817,3.56348314,2484.7,2484.6,4.02479272]
[1748857183103,3.56348314,2484.7,2484.5,5.17890703]
[1748857183289,3.56348314,2484.9,2484.5,5.17890703]
[1748857183466,7.5876393,2485.0,2484.6,4.02472824]
[1748857183665,7.58764492,2485.0,2484.6,4.02472824]
[1748857183878,7.58764492,2485.0,2484.5,5.17885877]
[1748857184592,3.56348314,2485.0,2484.6,4.02467654]
[1748857184802,7.58763066,2485.0,2484.6,4.02467654]
[1748857184989,3.56348314,2485.0,2484.6,4.02467654]
[1748857185809,3.56348314,2485.0,2484.7,4.02462067]
[1748857186162,3.56348314,2485.0,2484.6,4.02475971]
[1748857186363,3.56348314,2485.0,2484.8,4.02446278]
[1748857186665,3.56348314,2485.0,2484.6,4.5427299]
[1748857186865,3.56348314,2485.0,2484.6,0.51803697]
[1748857187095,7.58771882,2485.0,2484.5,5.17890305]
[1748857187409,7.58771882,2485.0,2484.6,4.02477434]
[1748857187708,3.56348314,2485.0,2484.6,4.02477434]
[1748857187905,7.58767967,2485.0,2484.5,5.17887065]
[1748857188062,4.02440522,2484.9,2484.4,4.02668023]
[1748857188265,3.56348314,2484.8,2484.5,1.154]
[1748857188473,3.56348314,2484.8,2484.5,5.17881952]
[1748857188680,3.56348314,2484.8,2484.6,4.02478302]
[1748857188880,3.56348314,2485.0,2484.7,4.02463074]
[1748857189079,3.56348314,2485.0,2484.8,4.02433263]
[1748857189284,3.56348314,2485.0,2484.5,1.154]
[1748857189478,3.56348314,2485.0,2484.7,4.02451331]
[1748857189706,3.56348314,2485.0,2484.8,4.02439771]
[1748857190202,3.56348314,2485.0,2484.7,4.02450222]
[1748857190905,3.56348314,2485.0,2484.8,4.02445539]
[1748857191367,3.56348314,2485.0,2484.7,4.02453551]
[1748857191569,3.56348314,2485.0,2484.8,4.02446464]
[1748857191794,0.778,2485.1,2484.8,4.02446464]
[1748857191982,0.778,2485.1,2484.9,4.02429046]
[1748857192199,3.56348314,2485.2,2484.9,4.02429046]
[1748857193014,3.56348314,2485.2,2484.9,4.02420646]
[1748857193315,3.56348314,2485.2,2484.8,4.02439619]
[1748857193495,3.56348314,2485.2,2484.9,4.02427021]
[1748857193920,3.56348314,2485.2,2484.8,4.02437423]
[1748857194088,3.56348314,2485.2,2484.8,4.02439521]
[1748857194523,3.56348314,2485.2,2484.7,1.154]
[1748857194821,3.56348314,2485.2,2484.8,4.02438601]
[1748857194822,7.58730694,2485.2,2484.8,4.02438601]
[1748857194981,3.56348314,2485.2,2484.8,4.02438601]
[1748857195199,5.22788141,2485.3,2484.7,1.154]
[1748857195200,3.56348314,2485.0,2484.7,5.17862492]
[1748857195506,7.58771445,2485.0,2484.7,1.154]
[1748857197038,3.56348314,2485.0,2484.7,1.154]
[1748857197831,3.56348314,2485.0,2484.7,5.17862441]
[1748857198032,3.56348314,2485.0,2484.7,5.17848537]
[1748857198225,3.56348314,2485.2,2484.8,4.0243995]
[1748857198427,7.58731654,2485.2,2484.7,5.17854167]
[1748857198806,7.58731654,2485.2,2484.8,4.024444]
[1748857199102,4.02398969,2485.1,2484.7,5.17858998]
[1748857200035,7.58739743,2485.2,2484.7,5.17858998]
[1748857200223,3.56348314,2485.2,2484.8,4.02440001]
[1748857200421,3.56348314,2485.2,2484.7,1.154]
[1748857200613,3.56348314,2485.4,2484.8,0.86414251]
[1748857200813,3.56348314,2485.4,2485.0,4.02407908]
[1748857200814,7.58704773,2485.4,2485.0,4.02407908]
[1748857201043,3.56348314,2485.4,2485.0,4.02407908]
[1748857201198,3.56348314,2485.4,2484.9,4.02427853]
[1748857201199,3.56348314,2485.2,2484.9,4.02425856]
[1748857201405,3.56348314,2485.2,2485.0,4.02414024]
[1748857201911,0.7957,2485.1,2484.5,0.7727]
[1748857202110,0.7957,2485.1,2484.7,4.02448525]
[1748857202340,4.35918314,2485.1,2484.8,4.02440417]
[1748857203061,4.35918314,2485.1,2484.9,4.02429505]
[1748857203213,4.35918314,2485.1,2484.8,4.02438388]
[1748857203415,4.35918314,2485.1,2484.8,4.02434254]
[1748857203610,4.35918314,2485.1,2484.7,4.02463074]
[1748857203611,8.38323956,2485.1,2484.6,5.17769682]
[1748857203968,3.56348314,2484.9,2484.6,5.17778258]
[1748857204167,3.56348314,2484.7,2484.6,1.153]
[1748857204455,8.40683589,2484.7,2484.3,1.153]
[1748857204626,3.56348314,2484.4,2484.3,1.153]
[1748857205450,3.56348314,2484.4,2484.1,4.03551185]
[1748857205661,4.02496549,2484.5,2484.1,4.03551185]
[1748857205825,0.8152,2485.0,2484.2,5.0791]
[1748857206024,0.8152,2485.0,2484.3,4.02513043]
[1748857206025,3.56348314,2484.8,2484.3,4.02513043]
[1748857206224,3.56348314,2484.8,2484.4,4.02502507]
[1748857206749,3.56348314,2484.8,2484.5,4.02492833]
[1748857206929,3.56187314,2484.8,2484.5,5.17792833]
[1748857207319,3.56187314,2484.8,2484.5,1.153]
[1748857207962,7.58637323,2484.8,2484.5,1.153]
[1748857208260,4.37588314,2484.6,2484.5,1.153]
[1748857209032,8.40067586,2484.6,2484.1,4.03553199]
[1748857209368,3.56348314,2484.2,2484.1,0.01]
[1748857209721,4.33878314,2484.2,2484.1,0.01]
[1748857209925,8.36422392,2484.2,2484.1,0.01]
[1748857210120,9.60317959,2484.2,2484.1,0.01]
[1748857211070,4.255,2484.3,2484.1,0.01]
[1748857212162,7.58892392,2484.2,2484.1,0.01]
[1748857213261,8.37492392,2484.2,2484.1,0.01]
[1748857215252,4.34948314,2484.2,2484.1,0.01]
[1748857215427,8.37492392,2484.2,2484.1,0.01]
[1748857216064,4.34948314,2484.2,2484.1,0.01]
[1748857216946,3.56348314,2484.2,2484.1,0.01]
[1748857217563,0.8124,2484.4,2484.1,0.01]
[1748857217740,4.83752883,2484.4,2484.1,0.01]
[1748857218464,7.58887177,2484.3,2484.1,0.01]
[1748857220263,7.58883178,2484.3,2484.1,0.01]
[1748857220967,4.02544078,2484.2,2484.1,0.01]
[1748857221574,4.85304078,2484.2,2484.1,0.01]
[1748857221754,5.40304078,2484.2,2484.1,0.01]
[1748857221959,6.8690297,2484.2,2484.1,0.01]
[1748857222163,10.43251284,2484.2,2484.1,0.01]
[1748857222455,14.8690297,2484.2,2484.1,0.01]
[1748857223269,17.79658366,2484.2,2484.1,0.01]
[1748857223905,20.21258366,2484.2,2484.1,0.01]
[1748857224261,23.7760668,2484.2,2484.1,0.01]
[1748857228999,4.02627664,2483.7,2483.3,1.153]
[1748857229285,3.56348314,2483.5,2483.3,1.153]
[1748857229784,3.56348314,2483.5,2483.3,5.17988728]
[1748857230088,3.56348314,2483.5,2483.3,1.153]
[1748857230584,3.56348314,2483.5,2483.3,5.17989687]
[1748857231289,3.56348314,2483.5,2483.3,1.153]
[1748857232353,3.56348314,2483.5,2483.3,5.17988401]
[1748857233884,3.56348314,2483.5,2483.3,1.153]
[1748857235390,2.23393444,2484.0,2483.4,0.8203]
[1748857235700,3.76027509,2484.0,2483.7,4.02618054]
[1748857235855,2.23393444,2484.0,2483.9,4.02592696]
[1748857236189,5.79741758,2484.0,2483.9,4.02592696]
[1748857236368,5.79741758,2484.0,2483.7,0.8203]
[1748857236790,5.79741758,2484.0,2483.8,4.0260059]
[1748857237111,5.79741758,2484.0,2483.9,4.02592696]
[1748857238009,5.79741758,2484.0,2483.8,4.02599515]
[1748857238911,5.79618227,2484.0,2483.9,4.02592696]
[1748857239112,2.23269913,2484.0,2483.9,4.02592696]
[1748857239611,2.23269913,2484.0,2483.8,4.02601667]
[1748857239798,2.23269913,2484.0,2483.7,4.84654677]
[1748857239799,5.79618227,2484.0,2483.7,4.84654677]
[1748857240013,5.79618227,2484.0,2483.7,1.9713]
[1748857240180,5.79618227,2484.0,2483.7,1.151]
[1748857240891,3.56348314,2483.8,2483.7,1.151]
[1748857244415,8.13957219,2483.8,2483.7,1.151]
[1748857244713,4.02632417,2483.7,2483.3,0.8203]
[1748857244893,3.56348314,2483.6,2483.3,0.8203]